Cogmind - Beta 11.1 @@@ ROGUE MODE // 2022.12.10 @ 00:41:55 Player: Yung_Crimp Result: Destroyed by G-47 Trooper with Particle Gun Performance ------------- Evolutions (0) 0 Regions Visited (1) 200 Robots Destroyed (29) 145 Value Destroyed (434) 434 Prototype IDs (2) 40 Alien Tech Used (0) 0 Bonus (0) 0 TOTAL SCORE: 819 Bonus ------- None Cogmind --------- Core Integrity 0/250 Matter 300/300 Energy 115/125 System Corruption 0% Temperature Hot (208) Movement Walking (190) Ox1 Location -10/Materials Parts ------- > --- POWER (1) -------- Light Ion Engine > --- PROPULSION (2) --- Aluminum Leg > --- UTILITY (2) ------ Small Storage Unit Improved Terrain Scanner > --- WEAPON (2) ------- Medium Laser > --- INVENTORY (8) ---- Improved Heat Sink Medium Matter Pod (100) Large Matter Pod (150) Structural Scanner Visual Processing Unit Signal Interpreter Mining Laser Peak State ------------ > --- POWER ------------ Light Nuclear Core > --- PROPULSION ------- Aluminum Leg Aluminum Leg > --- UTILITY ---------- Small Storage Unit Seismic Detector > --- WEAPON ----------- Medium Laser Assault Rifle > --- INVENTORY -------- Ion Engine Light Ion Engine Light Treads Medium Matter Pod Large Matter Pod Signal Interpreter Improved Terrain Scanner Mining Laser [Rating: 10] Favorites ----------- Power Ion Engine Engine Ion Engine Power Core Light Nuclear Core Propulsion Aluminum Leg Treads Light Treads Leg Aluminum Leg Utility Small Storage Unit Device Improved Terrain Scanner Storage Small Storage Unit Weapon Medium Laser Energy Gun Medium Laser Ballistic Gun Assault Rifle Special Weapon Mining Laser Build | -11 -10 ------- Run | Scr Mat Slots Evolved . | . . Power . | . . Propulsion . | . . Utility . | . . Weapon . | . . Parts Attached 22 | 10 12 Power 4 | 1 3 Engine 3 | 1 2 Core 1 | . 1 Reactor . | . . Propulsion 5 | 2 3 Treads 1 | . 1 Leg 4 | 2 2 Wheel . | . . Hover . | . . Flight . | . . Utility 8 | 3 5 Device 3 | 1 2 Storage 5 | 2 3 Processor . | . . Hackware . | . . Protection . | . . Artifact . | . . Weapon 5 | 4 1 Energy Gun 3 | 3 . Energy Cannon . | . . Ballistic Gun 1 | 1 . Ballistic Cannon . | . . Launcher . | . . Special Weapon 1 | . 1 Impact Weapon . | . . Slashing Weapon . | . . Piercing Weapon . | . . Special Melee Weapon . | . . Unidentified Prototypes . | . . Parts Lost 3 | . 3 Power 1 | . 1 Propulsion 1 | . 1 Utility . | . . Weapon 1 | . 1 Highest Loss Streak 1 | . 1 To Critical Strikes . | . . Average Slot Usage (%) 89 | . 89 Engine 12 | . 12 Treads 3 | . 3 Leg 20 | . 20 Device 8 | . 8 Storage 19 | . 19 Energy Gun 14 | . 14 Ballistic Gun 8 | . 8 Naked Turns . | . . Heaviest Build 17 | 16 17 Greatest Support 20 | 20 20 Greatest Overweight (x) 4 | 1 4 Average Overweight (x) . | . . Largest Inventory Capacity 8 | 8 8 Average Capacity 7 | 7 8 Most Carried 8 | 8 8 Average Carried 6 | 5 7 Final Capacity 8 | 8 8 Final Carried 7 | 7 7 Class Distribution -------------------- 100% | Mutant Dominant Class ---------------- Mutant | -10/Materials Resources | -11 -10 ----------- Run | Scr Mat Matter Collected 806 | 357 449 Remotely . | . . Salvage Created 922 | 339 583 Parts 68 | 37 31 Haulers Intercepted . | . . Recyclers Shooed 3 | . 3 Parts Field Recycled . | . . Retrieved Matter . | . . Parts Self-Destructed . | . . Prevented . | . . Kills | -11 -10 ------- Run | Scr Mat Combat Hostiles Destroyed 8 | . 8 Guns 8 | . 8 Classes Destroyed 6 | 3 3 Worker 7 | 4 3 Builder 3 | . 3 Tunneler 8 | 8 . Recycler 2 | 1 1 Watcher 1 | . 1 Grunt 8 | . 8 Best Kill Streak 4 | 2 4 Combat Bots Only 3 | . 3 Max Kills in Single Turn 1 | 1 1 Gunslinging . | . . Exploded . | . . Melee . | . . Uniques/NPCs Destroyed . | . . Combat | -11 -10 -------- Run | Scr Mat Damage Taken 736 | . 736 Core 252 | . 252 Absorbed by Shields . | . . Core Remaining (%) 100 | 100 . Volleys Fired 79 | 26 53 Largest 2 | 2 2 Hottest 90 | 90 70 Shots Fired 133 | 52 81 Gun 133 | 52 81 Cannon . | . . Launcher . | . . Special . | . . Kinetic 47 | 19 28 Thermal 86 | 33 53 Explosive . | . . Electromagnetic . | . . Robot Hit Streak 6 | 6 6 Robot Miss Streak 7 | 7 3 Penetration Max . | . . Secondary Targets . | . . Shots Hit Robots 76 | 29 47 Core Hits 42 | 14 28 Critical Kills . | . . Critical Parts Destroyed . | . . Critical Strikes 2 | . 2 Burn 2 | . 2 Melee Attacks . | . . Impact . | . . Slashing . | . . Piercing . | . . Sneak Attacks . | . . Combat Hostiles . | . . Follow-up Attacks . | . . Damage Inflicted 1064 | 365 699 Guns 987 | 362 625 Cannons . | . . Explosions 74 | . 74 Melee . | . . Ramming 3 | 3 . Kinetic 282 | 120 162 Thermal 705 | 242 463 Explosive . | . . Electromagnetic 74 | . 74 Impact . | . . Slashing . | . . Piercing . | . . Highest Corruption . | . . Average Corruption . | . . Corruption Purged . | . . Corruption Blocked . | . . Overload Shots . | . . Overflow Damage 2 | . 2 Projectiles . | . . Explosions 2 | . 2 Melee . | . . Knockbacks . | . . Impact . | . . Kinetic . | . . Secondary . | . . Self-Inflicted Damage 154 | . 154 Shots 4 | . 4 Rammed . | . . Targets Rammed 1 | 1 . Kicked 1 | 1 . Crushed . | . . Highest Temperature 218 | 120 218 Average Temperature 47 | 21 61 Received Heat Transfer 339 | . 339 Effects 1 | . 1 Energy Bleed 1 | . 1 Siege Activations . | . . Robots Corrupted . | . . Combat Hostiles . | . . Parts Fried . | . . Impact Corruptions . | . . Robots Melted . | . . Combat Hostiles . | . . Parts Melted 6 | 2 4 Heat Transferred 2185 | 668 1517 Parts Sabotaged . | . . Parts Stolen . | . . Parts Stripped . | . . Power Chain Reactions 2 | . 2 Missiles Intercepted . | . . Alert | -11 -10 ------- Run | Scr Mat Peak Influence 175 | 45 175 Initial 13 | . 13 Average 42 | 18 66 Maximum Alert Level . | . . Low Security (%) 100 | 100 100 Level 1 . | . . Level 2 . | . . Level 3 . | . . Level 4 . | . . Level 5 . | . . High Security . | . . Max Security . | . . Squads Dispatched 1 | . 1 Investigation 1 | . 1 Extermination . | . . Reinforcement . | . . Assault . | . . Garrison . | . . Intercept . | . . Searches Triggered . | . . Construction Impeded . | . . Haulers Reinforced . | . . Active Scanning Responses . | . . Cargo Convoy Interrupts . | . . Stealth | -11 -10 --------- Run | Scr Mat Distress Signals . | . . Communications Jammed . | . . Distress Signals . | . . Times Spotted 11 | . 11 Peak Tracking Total 3 | . 3 Tactical Retreats . | . . Traps | -11 -10 ------- Run | Scr Mat Traps Triggered . | . . Indirectly . | . . Trap Hack Attempts . | . . Triggered . | . . Disarmed . | . . Reprogrammed . | . . Reused . | . . Traps Extracted . | . . Installed . | . . Triggered . | . . Machines | -11 -10 ---------- Run | Scr Mat Machines Disabled 3 | . 3 Max in Single Turn 3 | . 3 Machines Sabotaged . | . . Garrisons Compromised . | . . Overloaded Fab Kills . | . . Hacking | -11 -10 --------- Run | Scr Mat Machines Accessed 3 | . 3 Terminals 3 | . 3 Fabricators . | . . Repair Stations . | . . Recycling Units . | . . Scanalyzers . | . . Garrison Access . | . . Total Hacks 12 | . 12 Successful 9 | . 9 Failed 3 | . 3 Catastrophic . | . . Database Lockouts . | . . Manual . | . . Terminals 12 | . 12 Fabricators . | . . Repair Stations . | . . Recycling Units . | . . Scanalyzers . | . . Garrison Access . | . . Terminal Hacks 9 | . 9 Record 3 | . 3 Prototype ID Bank 1 | . 1 Alert Level 1 | . 1 Locate Traps 1 | . 1 Hauler Manifests 1 | . 1 Registered Components 1 | . 1 Zone Layout 1 | . 1 Fabricator Hacks . | . . Repair Station Hacks . | . . Recycling Unit Hacks . | . . Scanalyzer . | . . Garrison Access Hacks . | . . Unauthorized Hacks . | . . Terminals . | . . Fabricators . | . . Repair Stations . | . . Recycling Units . | . . Scanalyzers . | . . Garrison Access . | . . Data Cores Recovered . | . . Used . | . . Hacking Detections 2 | . 2 Full Trace Events 2 | . 2 Feedback Events . | . . Feedback Blocked . | . . Robot Schematics Acquired . | . . Robots Built . | . . Authchips . | . . Time . | . . Total Robot Build Rating . | . . Part Schematics Acquired . | . . Parts Built . | . . Authchips . | . . Time . | . . Total Part Build Rating . | . . Parts Repaired . | . . Time . | . . Parts Recycled . | . . Recycled Matter . | . . Retrieved Matter . | . . Retrieved Components . | . . Parts Scanalyzed . | . . Part Schematics Acquired . | . . Parts Damaged . | . . Bothacking | -11 -10 ------------ Run | Scr Mat Used RIF Installer . | . . Robots Hacked . | . . Non-combat . | . . Combat . | . . Robot Hacks Applied . | . . Relay Couplers Released . | . . Fabnet Peak Effective % . | . . Robots Rewired . | . . Allies Hacked . | . . Hacks Repelled . | . . Allies | -11 -10 -------- Run | Scr Mat Total Allies . | . . Largest Group . | . . Highest-Rated Group . | . . Highest-Rated Ally . | . . Total Orders . | . . Ally Attacks . | . . Total Damage . | . . Kills . | . . Allies Corrupted . | . . Allies Melted . | . . Intel | -11 -10 ------- Run | Scr Mat Robot Analysis Total . | . . Derelict Logs Recovered . | . . Drone Launches . | . . Drone Recoveries . | . . Exploration | -11 -10 ------------- Run | Scr Mat Turns Passed 1409 | 710 699 Spaces Moved 855 | 498 357 Core 31 | 26 5 Treads 62 | . 62 Legs 762 | 472 290 Wheels . | . . Hover . | . . Flight . | . . Fastest Speed 50 | 50 120 Average Speed 124 | 120 129 Slowest Speed 250 | 190 250 Overloaded Moves . | . . Propulsion Burnouts . | . . Robots Hopped . | . . Cave-ins Triggered . | . . Exploration Rate (%) 21 | 15 27 Regions Visited 1 Branch Regions . Pre-discovered Areas . | . . Known Exits Taken . | . . Unknown Exits Taken 1 | 1 . Scrap Searched . | . . Spaces Dug . | . . Terrain Destroyed . | . . Melee . | . . Projectile . | . . AOE . | . . Terrain Rammed . | . . Walls Destroyed . | . . Machines Disabled . | . . Actions | -11 -10 --------- Run | Scr Mat Total 1080 | 560 520 Wait 75 | . 75 Move 854 | 497 357 Hop . | . . Pick Up 29 | 19 10 Fast Attach . | . . Attach 18 | 10 8 Detach 6 | 2 4 Swap 4 | . 4 Drop 14 | 5 9 Fire 79 | 26 53 Melee . | . . Ram . | . . Kick 1 | 1 . Crush . | . . Escape Stasis . | . . Rewire . | . . Trap . | . . Miscellaneous . | . . Route ------- -11/Scrapyard -10/Materials History --------- Turn | Location | Event 17 | -11/Scrapyard | Discovered new exit (range 16) 711 | -11/Scrapyard | Entered Materials 712 | -10/Materials | Build established: Mutant 1146 | -10/Materials | Core integrity fell below 50% 1401 | -10/Materials | Core integrity fell below 20% 1410 | -10/Materials | Destroyed by G-47 Trooper with Particle Gun Last Messages --------------- 01264_ Terminal unresponsive. 01281_ Connecting with Terminal... >>Alert(Check) Current Alert Level: Low Security >>Inventory(Components) Retrieving component inventory records... Found 1 registered component stockpile: 26I9XIFHQO: Sml. Storage Unit Downloaded coordinate data. 01287_ K-01 Serf cleans the Terminal. 01380_ K-01 Serf suffers critical hit (Burn). 01384_ Lgt. Ion Engine melted. 01384_ K-01 Serf destroyed. 01385_ K-01 Serf collects debris. 01390_ K-01 Serf destroyed. 01393_ K-01 Serf collects debris. 01394_ K-01 Serf destroyed. 01408_ Heat Sink melted. 01408_ G-34 Mercenary destroyed. 01408_ Aluminum Leg destroyed. Map ----- +----------------------------------------------------+ | ????????????????????????????????????????????????? | | ????????????????????????????????????????????????? | | ????????????????????????????????????????????????? | | ????????????????????????????????????????????????? | | ????????????????????????????????????????????????? | | ????????????????????????????????????????????????? | | ????????????????????????????????????????????????? | | ????????????????????????????????????????????????? | | ????????????????????????????????????????????????? | | ????????????????????????????????????????????????? | | ????????????????????????????????????????????????? | | ???????????????????????+? ??? ??????????????????? | | ????????????? + """ #### # ????? | | ????????????? # ######+## ## # ????? | | ????????????? # ## ## ### ## ????? | | ????????????? # ## """## #?# ## ????? | | ????????????? ###?##### """## ### ## ????? | | ????????????? #?# ##### """## ### ###????? | | ????????????? #?# ? """# ## #??????? | | ????????????? ######### # ######?#????? | | ????????????? #?#???#?# # #??#????????? | | ????????????? ##?#????####### #???#??#????? | | ???????????## ###????#??#"""# #?#####?????? | | ???????????# % [##########"T"##### ### [[#?????? | | ?????????? # =r= k !% [[#?????? | | ?????????? + g!% @ [[#?????? | | ???????????# k "" [[#?????? | | ???????????# ########^ "T ####### !!#?????? | | ???????????#######???#??# ^"" #?????# #?????? | | ??????????????????##????# ^ #?????#####?????? | | ????????????#???????????#^% * #????#?#######??? | | ???????????????########## %! ######## #??? | | ????????????#??# # ! ! #??? | | ???????????????# # !! #??? | | ???????????#####[ + %! #??? | | ???????????# #=[ % ###"T"#######+##[ #??? | | ???????????# /= != #?#####?# ## ##??? | | ??????######= =#= #???????# """ ## #???? | | ??????# ## #= ##?##??## """ ## #???? | | ??????# ## # #???##??# """ ## #???? | | ??????# ## # ##??????# ## #???? | | ####### ## ##########???????# ## #?#?? | | ## ## ## #?????#?######### ????? | | ## ## ## #?????????#?????????????? | | ## ## ## #???????????????????????? | | ###+## # """ #???????????????????????? | | # # """ #???????????????????????? | | + + """ #???????????????????????? | | # # #???????????????????????? | | ###+## # """ #???????????????????????? | +----------------------------------------------------+ Best States ------------- Heat Dissipation 25 Energy Generation 14 Energy Capacity 250 Matter Stores 450 Matter Capacity 450 Sight Range 16 Terrain Scan Range 16 Terrain Scan Density 10 Evasion (%) 55 Recoil Reduction 1 Item Schematics ----------------- None Robot Schematics ------------------ None Fabricated ------------ Nothing Alien Tech Used ----------------- None Achievements -------------- One Hack Too Far Shopping List Storm Trooper Challenges ------------ None Game ------ Seed NodeFocalScreen Manual? 0 Play Time 00:35:09 Cumulative 1.2 hours Start 2022.12.09 @ 17:01:28 End 2022.12.10 @ 00:41:55 Sessions 5 Manual Loads 0 Difficulty Rogue Special Mode None Game No. 3 Rogue 3 Adventurer 0 Explorer 0 Win Type - Total 0 Types 0/0/0/0/0/0/0/0/0 Lore% 0 Gallery% 1 Achievement% 1 Wizard Run 0 Options --------- ASCII 0 Keyboard 0 Movement Arrows Keybinds 0 Fullscreen 1 Font 18/SmallcapsGlow Map View 76x50 Tactical HUD 1 Map Filters NONE Filters NONE Steam 1 RUN: 46d31e41-408d-4262-a82c-66ac13dc1afa